bitfinex/quotes_SOLUSD_20260302
["timestamp","ask_amount","ask_price","bid_price","bid_amount"]
[1772488712624,0.74589889,87.575,87.552,11.42178362]
[1772488713723,0.74589889,87.575,87.544,0.68211082]
[1772488714926,0.74589889,87.573,87.546,0.68179349]
[1772488716806,28.5439038,87.585,87.548,0.68116973]
[1772488716807,0.74589889,87.571,87.548,0.68116973]
[1772488721721,0.74589889,87.569,87.549,11.42217501]
[1772488722234,0.74589889,87.569,87.549,12.10184694]
[1772488722733,0.74589889,87.569,87.55,0.67938261]
[1772488723230,0.74589889,87.569,87.541,11.42321785]
[1772488723818,0.74589889,87.567,87.541,11.42321785]
[1772488724932,0.74589889,87.567,87.527,28.56240303]
[1772488724933,0.74589889,87.567,87.528,11.70923859]
[1772488725836,0.74589889,87.567,87.529,0.67853445]
[1772488726032,0.74589889,87.565,87.53,11.4246544]
[1772488726248,0.74589889,87.565,87.531,0.67853445]
[1772488729139,0.76188874,87.563,87.533,0.67744834]
[1772488730619,0.76188874,87.563,87.533,0.67692382]
[1772488730824,0.76188874,87.559,87.517,0.67692382]
[1772488731135,0.76188874,87.565,87.521,0.67692382]
[1772488731325,0.76188874,87.579,87.541,0.67692382]
[1772488731533,0.76188874,87.579,87.551,0.67666606]
[1772488731719,0.76188874,87.569,87.529,0.67666606]
[1772488732036,0.76188874,87.569,87.531,0.67666606]
[1772488733433,4.00650183,87.58,87.533,0.67615941]
[1772488733434,0.76188874,87.567,87.533,0.67615941]
[1772488736321,0.76188874,87.567,87.534,11.42413233]
[1772488736534,0.76188874,87.567,87.535,0.67542104]
[1772488737034,11.41995751,87.566,87.535,0.67542104]
[1772488737234,0.76188874,87.565,87.535,0.67542104]
[1772488738122,4.00650183,87.56,87.527,0.67518055]
[1772488738327,0.76188874,87.559,87.523,0.67518055]
[1772488738532,0.76188874,87.557,87.524,11.42543759]
[1772488738730,0.76188874,87.557,87.525,0.67494282]
[1772488739130,0.76188874,87.549,87.52,11.42592427]
[1772488739633,45.66773179,87.59,87.52,11.42592427]
[1772488739634,0.77627614,87.589,87.54,4.00650183]
[1772488739943,0.77627614,87.589,87.55,4.00650183]
[1772488740340,0.77627614,87.589,87.56,4.00650183]
[1772488740545,0.77627614,87.595,87.57,4.00650183]
[1772488741232,0.77627614,87.589,87.551,11.42191408]
[1772488741941,0.77627614,87.589,87.56,4.00650183]
[1772488742843,0.77627614,87.587,87.55,4.00650183]
[1772488744830,0.77627614,87.585,87.551,11.42191408]
[1772488745430,0.77627614,87.585,87.56,4.00650183]
[1772488747346,0.77627614,87.601,87.57,4.00650183]
[1772488747529,0.77627614,87.595,87.57,4.00650183]
[1772488748452,4.00650183,87.59,87.55,4.00650183]
[1772488748638,0.77627614,87.589,87.54,4.00650183]
[1772488748839,0.77627614,87.579,87.54,4.00650183]
[1772488750643,0.77627614,87.577,87.541,11.42321883]
[1772488750830,0.77627614,87.569,87.537,11.42370849]
[1772488751730,0.77627614,87.569,87.54,4.00650183]
[1772488754542,0.77627614,87.567,87.541,11.42321883]
[1772488756959,0.77627614,87.567,87.542,0.03365205]
[1772488757140,0.78552755,87.573,87.551,0.03365205]
[1772488762652,0.77627614,87.581,87.551,0.03365205]
[1772488762858,0.77627614,87.581,87.552,0.05033445]
[1772488763662,0.77627614,87.579,87.552,0.05033445]
[1772488764766,0.77627614,87.589,87.552,0.05033445]
[1772488765653,0.77627614,87.589,87.561,0.05708127]
[1772488765843,0.77627614,87.594,87.571,0.05708127]
[1772488767048,0.77627614,87.594,87.571,11.47638674]
[1772488767948,0.77627614,87.594,87.572,0.06145098]
[1772488768877,11.41536434,87.602,87.572,0.06145098]
[1772488769169,12.35380427,87.596,87.572,0.06145098]
[1772488769555,0.77627614,87.595,87.572,0.06145098]
[1772488777561,0.77627614,87.606,87.572,0.06145098]
[1772488779676,0.77627614,87.604,87.572,0.06145098]
[1772488782778,4.00714805,87.6,87.571,11.41930547]
[1772488782965,0.77627614,87.589,87.563,11.42034877]
[1772488786181,0.77627614,87.587,87.557,0.0965501]
[1772488788503,0.77627614,87.585,87.553,28.55397433]
[1772488789378,0.77627614,87.579,87.551,11.42191408]
[1772488791682,57.06532671,87.619,87.545,0.10834634]
[1772488791683,0.77627614,87.577,87.545,0.10834634]
[1772488792481,0.77627614,87.577,87.544,28.66698527]
[1772488792676,0.77627614,87.577,87.55,4.00714805]
[1772488793282,0.77627614,87.589,87.551,0.10995498]
[1772488793586,0.77627614,87.589,87.561,11.53215478]
[1772488793587,0.77627614,87.588,87.561,11.53215478]
[1772488795286,0.77627614,87.588,87.562,0.11311706]
[1772488799381,0.77627614,87.598,87.562,0.11311706]
[1772488800594,0.77627614,87.589,87.556,0.12217652]
[1772488801602,0.77627614,87.587,87.556,0.12217652]
[1772488802095,4.00714805,87.6,87.556,0.12217652]
[1772488802298,139.34178078,88.669,87.581,0.12362631]
[1772488802299,0.77627614,87.61,87.581,0.12362631]
[1772488802487,0.77627614,87.61,87.56,7.70098207]
[1772488802488,28.52387532,87.646,87.591,0.78445219]
[1772488802681,28.52387532,87.646,87.601,0.78445219]
[1772488802879,0.1,87.64,87.601,0.78445219]
[1772488803474,0.1,87.64,87.602,12.19971668]
[1772488803699,4.10714805,87.64,87.603,0.78445219]
[1772488804577,0.76773126,87.639,87.603,0.78445219]
[1772488806092,0.76773126,87.637,87.604,11.41500388]
[1772488808200,0.76773126,87.635,87.604,0.78445219]
[1772488812487,11.41109614,87.634,87.605,11.41487358]
[1772488812689,0.76773126,87.633,87.605,11.41487358]
[1772488812885,4.10714805,87.64,87.611,0.78445219]
[1772488812886,0.1,87.64,87.611,0.78445219]
[1772488813089,0.86773126,87.64,87.611,0.78445219]
[1772488813299,0.76773126,87.619,87.572,0.78445219]
[1772488813490,0.76773126,87.619,87.574,0.78445219]
[1772488814179,0.76773126,87.619,87.58,4.00714805]
[1772488814386,0.76773126,87.624,87.591,0.78445219]
[1772488814709,0.76773126,87.624,87.593,0.78445219]
[1772488815687,0.76773126,87.639,87.601,0.78445219]
[1772488817206,0.81463784,87.638,87.603,0.76193621]
[1772488818311,0.80161489,87.619,87.589,11.41686627]
[1772488818609,0.80161489,87.609,87.589,11.41686627]
[1772488819315,0.80161489,87.609,87.584,11.41761052]
[1772488819902,0.80161489,87.614,87.585,0.79275195]
[1772488820219,0.80161489,87.629,87.591,0.79275195]
[1772488821720,0.80161489,87.627,87.593,0.79275195]
[1772488826519,0.80161489,87.627,87.595,0.79275195]
[1772488826720,0.80161489,87.625,87.595,0.79275195]
[1772488829504,0.80161489,87.623,87.596,11.41604639]
[1772488832127,0.80161489,87.627,87.597,0.79275195]
[1772488833207,0.80161489,87.627,87.598,11.41578574]
[1772488833409,0.80161489,87.627,87.599,0.79275195]
[1772488835251,0.80161489,87.625,87.599,0.79275195]
[1772488835734,0.80161489,87.623,87.6,11.41552511]
[1772488835909,0.80161489,87.619,87.592,11.41650789]
[1772488837518,0.80161489,87.619,87.591,0.79275195]
[1772488838517,0.80161489,87.617,87.591,0.79275195]
[1772488840728,11.41344046,87.616,87.582,0.79275195]
[1772488840929,0.80161489,87.615,87.582,0.79275195]
[1772488841330,0.80161489,87.615,87.564,3.69383402]
[1772488841331,0.80161489,87.599,87.572,11.41917507]
[1772488843032,0.80161489,87.599,87.572,0.79275195]
[1772488844233,4.00318607,87.61,87.572,0.79275195]
[1772488845143,11.4143524,87.609,87.573,39.96665638]
[1772488845359,11.4143524,87.609,87.574,0.79275195]
[1772488846249,0.80161489,87.608,87.574,0.79275195]
[1772488847524,0.80161489,87.608,87.576,0.77630978]
[1772488847931,0.82255894,87.606,87.576,0.77630978]
[1772488848126,4.82574501,87.62,87.576,0.77630978]
[1772488848330,4.82574501,87.62,87.575,39.96574363]
[1772488848331,0.82255894,87.623,87.581,0.77630978]
[1772488848933,0.82255894,87.623,87.591,0.77630978]
[1772488849147,0.1,87.64,87.577,0.28432314]
[1772488849148,0.82255894,87.619,87.581,0.77630978]
[1772488849652,0.82255894,87.619,87.583,0.77630978]
[1772488850748,0.82255894,87.618,87.583,0.77630978]
[1772488853450,11.4133102,87.617,87.584,11.41761052]
[1772488853658,0.82255894,87.616,87.585,0.77630978]
[1772488856331,0.82255894,87.616,87.587,0.77630978]
[1772488859438,0.82255894,87.616,87.588,39.95981183]
[1772488859634,0.82255894,87.616,87.589,0.77630978]
[1772488860437,11.41044512,87.639,87.6,4.00318607]
[1772488860653,0.82255894,87.638,87.601,0.77630978]
[1772488861952,0.1,87.64,87.611,0.77630978]
[1772488862248,0.1,87.67,87.602,97.02974816]
[1772488862249,1e-08,87.673,87.639,0.77630978]
[1772488862570,1e-08,87.673,87.651,0.77630978]
[1772488863864,1e-08,87.673,87.653,0.77630978]
[1772488864035,0.82255894,87.672,87.653,0.77630978]
[1772488865251,0.82255894,87.672,87.654,11.40849248]
[1772488866040,1e-08,87.673,87.655,0.77630978]
[1772488867355,1e-08,87.673,87.656,12.18454196]
[1772488867940,0.82255895,87.673,87.656,12.18454196]
[1772488869367,0.82255895,87.673,87.656,8.64384558]
[1772488870560,102.7,87.721,87.661,0.77630978]
[1772488870561,0.82255894,87.705,87.661,0.77630978]
[1772488870752,0.82255894,87.705,87.656,8.64384558]
[1772488870753,0.1,87.71,87.671,0.77630978]
[1772488870952,0.1,87.71,87.656,82.79735475]
[1772488870953,0.82255894,87.698,87.664,0.77630978]
[1772488871261,0.82255894,87.669,87.639,0.77630978]
[1772488871441,0.82255894,87.667,87.639,0.77630978]
[1772488871643,0.82255894,87.667,87.641,0.77630978]
[1772488873166,0.82255894,87.673,87.641,0.77630978]
[1772488874444,11.40615019,87.672,87.642,11.41005454]
[1772488874649,0.82255894,87.671,87.643,0.77630978]
[1772488876956,0.78073441,87.669,87.645,0.77591086]
[1772488880270,4.00318607,87.68,87.64,32.52897338]
[1772488880271,0.75157197,87.667,87.646,12.14830196]
[1772488881147,0.75157197,87.667,87.647,0.73876816]
[1772488882278,0.75157197,87.665,87.647,0.73876816]
[1772488882578,0.75157197,87.67,87.649,0.73876816]
[1772488883670,0.75157197,87.67,87.648,11.40927345]
[1772488883671,0.75157197,87.669,87.641,0.73876816]
[1772488885060,0.75157197,87.667,87.641,12.14895289]
[1772488885375,0.75157197,87.667,87.642,0.73876816]
[1772488886980,0.75157197,87.659,87.617,0.73876816]
[1772488887171,0.75157197,87.639,87.617,0.73876816]
[1772488888184,0.75157197,87.638,87.617,0.73876816]
[1772488888793,0.75157197,87.638,87.61,0.73876816]
[1772488889578,0.75157197,87.638,87.61,12.15292448]
[1772488890186,0.75157197,87.636,87.61,12.15292448]
[1772488890686,0.75157197,87.636,87.611,0.73876816]
[1772488890892,11.40959775,87.646,87.611,0.73876816]
[1772488891094,0.75157197,87.645,87.611,0.73876816]
[1772488891998,0.75157197,87.639,87.61,11.41415632]
[1772488892194,0.75157197,87.627,87.592,0.73876816]
[1772488893378,0.75157197,87.625,87.594,0.73876816]
[1772488894896,0.75157197,87.619,87.581,11.41800162]
[1772488895080,0.75157197,87.619,87.581,12.15676978]
[1772488895280,0.75157197,87.619,87.582,0.73876816]
[1772488896880,0.75157197,87.617,87.584,0.73876816]
[1772488900898,0.75157197,87.615,87.586,0.73876816]
[1772488901488,39.93200149,87.649,87.601,0.73876816]
[1772488901690,0.75157197,87.647,87.621,0.73876816]
[1772488902705,0.75157197,87.647,87.614,0.73876816]
[1772488902887,0.75157197,87.645,87.62,3.99872294]
[1772488903590,0.75157197,87.645,87.616,0.73876816]
[1772488905104,0.75157197,87.629,87.59,3.99872294]
[1772488907010,0.75157197,87.627,87.591,0.73876816]
[1772488907596,0.75157197,87.627,87.593,0.75313403]
[1772488909208,0.76626042,87.625,87.594,12.16944108]
[1772488909394,0.76626042,87.625,87.595,0.75313403]
[1772488916215,0.76626042,87.623,87.596,11.41604639]
[1772488918511,0.76626042,87.623,87.59,3.99872294]
[1772488918705,0.76626042,87.623,87.567,30.0]
[1772488918706,0.76626042,87.621,87.591,11.41669806]
[1772488919616,0.76626042,87.599,87.562,0.75313403]
[1772488920617,0.76626042,87.633,87.58,3.99872294]
[1772488920804,0.76626042,87.619,87.581,0.75313403]
[1772488921199,0.76626042,87.626,87.591,0.75313403]
[1772488921399,4.82477569,87.655,87.566,3.69383402]
[1772488921400,0.76626042,87.64,87.611,0.75313403]
[1772488921603,0.76626042,87.64,87.62,3.99872294]
[1772488921802,0.76626042,87.64,87.62,4.75185697]
[1772488922097,0.76626042,87.64,87.62,3.99872294]
[1772488922412,0.76626042,87.64,87.62,4.75185697]
[1772488922924,0.76626042,87.659,87.631,0.75313403]
[1772488924522,0.76626042,87.659,87.624,0.75313403]
[1772488924817,0.76626042,87.657,87.621,11.41278917]
[1772488924998,0.76626042,87.657,87.622,0.75313403]
[1772488926193,0.76626042,87.655,87.624,0.75313403]
[1772488927093,0.76626042,87.655,87.631,0.75313403]
[1772488928122,0.76626042,87.655,87.623,28.53132168]
[1772488928423,0.76626042,87.655,87.382,62.54920764]
[1772488928424,0.76626042,87.653,87.615,12.16670476]
[1772488928796,0.76626042,87.653,87.615,11.41357073]
[1772488928999,0.76626042,87.653,87.615,12.16670476]
[1772488930140,11.40875279,87.652,87.616,0.75313403]
[1772488930304,0.76626042,87.671,87.641,0.75313403]
[1772488932318,0.14216157,87.69,87.64,3.99872294]
[1772488932319,0.76626042,87.669,87.642,12.16318857]
[1772488932829,0.76626042,87.669,87.643,0.75313403]
[1772488934613,28.51240214,87.682,87.643,0.75313403]
[1772488934614,0.76626042,87.667,87.643,0.75313403]
[1772488936713,12.08615869,87.666,87.643,0.75313403]
[1772488937821,0.69330365,87.665,87.643,0.75313403]
[1772488938236,0.69330365,87.678,87.645,0.16642974]
[1772488938405,0.69330365,87.678,87.651,0.20496463]
[1772488938908,0.69330365,87.697,87.661,0.20292495]
[1772488939105,0.69330365,87.697,87.651,0.20292495]
[1772488940107,0.69330365,87.695,87.661,0.20090869]
[1772488940307,0.69330365,87.695,87.671,0.20090869]
[1772488940728,0.69330365,87.695,87.661,0.19891559]
[1772488941306,0.1,87.7,87.68,3.99872294]
[1772488941511,0.1,87.7,87.687,0.19891559]
[1772488941718,0.1,87.7,87.69,3.99872294]
[1772488942029,0.1,87.7,87.687,0.19891559]
[1772488942230,0.69330365,87.699,87.68,3.99872294]
[1772488942414,0.69330365,87.699,87.671,0.19499781]
[1772488942614,0.69330365,87.698,87.671,0.19499781]
[1772488943305,11.40289861,87.697,87.672,11.40615019]
[1772488943616,11.40289861,87.697,87.673,0.1930726]
[1772488946033,11.40289861,87.697,87.68,3.99627592]
[1772488946211,0.1,87.71,87.691,0.08928827]
[1772488946417,0.1,87.71,87.674,39.920615]
[1772488946418,0.69330365,87.708,87.681,0.08928827]
[1772488947513,0.69330365,87.689,87.651,0.08559038]
[1772488947822,0.69330365,87.687,87.651,0.08559038]
[1772488948029,0.69330365,87.683,87.652,0.08559038]
[1772488948238,0.69330365,87.681,87.652,0.08559038]
[1772488948410,1.14070609,87.682,87.652,0.08559038]
[1772488948411,0.69330365,87.679,87.652,0.08559038]
[1772488949121,11.40536964,87.678,87.652,0.08559038]
[1772488949615,12.09867329,87.678,87.652,0.08559038]
[1772488949809,0.69330365,87.677,87.652,0.08559038]
[1772488950420,0.69330365,87.675,87.644,0.08020129]
[1772488951612,0.69330365,87.673,87.638,0.07657307]
[1772488951832,0.69330365,87.673,87.586,61.6]
[1772488951833,0.69330365,87.659,87.623,0.07657307]
[1772488952330,0.69330365,87.649,87.612,0.07657307]
[1772488952632,0.69330365,87.649,87.57,45.67755558]
[1772488952633,0.69330365,87.649,87.606,0.07298652]
[1772488952831,0.69330365,87.649,87.609,11.4143524]
[1772488953032,0.69330365,87.649,87.611,0.07298652]
[1772488953649,11.40836232,87.655,87.631,0.06944116]
[1772488956044,1.14070609,87.679,87.631,0.06944116]
[1772488956045,0.69330365,87.667,87.641,0.06247215]
[1772488956462,0.69330365,87.667,87.632,0.06247215]
[1772488957349,0.69330365,87.664,87.632,0.06247215]
[1772488957550,0.69330365,87.664,87.627,11.41195736]
[1772488957731,0.69330365,87.663,87.63,3.99627592]
[1772488958044,0.69330365,87.663,87.631,0.05566231]
[1772488958749,0.69330365,87.661,87.631,0.05566231]
[1772488959336,12.1011454,87.659,87.632,0.05231594]
[1772488959531,11.40784175,87.659,87.632,0.05231594]
[1772488959743,0.69330365,87.658,87.632,0.05231594]
[1772488962951,0.69330365,87.656,87.621,0.03931043]
[1772488963157,40.62166076,87.657,87.63,3.99627592]
[1772488963354,0.69330365,87.656,87.63,4.03558635]
[1772488963728,0.69330365,87.654,87.621,11.41278917]
[1772488964446,0.69330365,87.654,87.621,11.44894105]
[1772488965037,0.69330365,87.652,87.622,0.03302961]
[1772488965927,0.69330365,87.652,87.627,0.0299432]
[1772488969455,1.14070609,87.659,87.595,61.6]
[1772488969456,0.6920514,87.639,87.595,61.6]
[1772488969764,0.6920514,87.639,87.57,103.7]
[1772488969765,0.6920514,87.639,87.6,3.99627592]
[1772488969955,0.6920514,87.639,87.61,3.99627592]
[1772488970548,0.6920514,87.639,87.6,3.99627592]
[1772488970745,12.10262672,87.638,87.61,3.99627592]
[1772488971039,12.10262672,87.638,87.611,11.41409183]
[1772488972766,11.41083572,87.636,87.61,3.99627592]
[1772488972949,0.6920514,87.635,87.61,3.99627592]
[1772488973266,0.6920514,87.669,87.63,3.99627592]
[1772488973470,0.6920514,87.669,87.611,39.94932142]
[1772488973471,0.6920514,87.669,87.64,3.99627592]
[1772488974740,0.6920514,87.669,87.65,3.99627592]
[1772488974939,11.40667062,87.668,87.65,3.99627592]
[1772488975640,11.40667062,87.668,87.643,11.40987468]
[1772488976255,11.40667062,87.668,87.65,3.99627592]
[1772488977641,0.6920514,87.673,87.643,11.40987468]
[1772488979657,0.6920514,87.671,87.643,11.40987468]
[1772488980369,11.40615019,87.672,87.65,3.99627592]
[1772488980665,0.6920514,87.671,87.65,3.99627592]
[1772488981240,0.6920514,87.684,87.65,3.99627592]
[1772488981441,0.6920514,87.684,87.66,3.99627592]
[1772488981639,0.6920514,87.684,87.65,3.99627592]
[1772488982066,11.40393892,87.689,87.643,11.40987468]
[1772488982263,11.40393892,87.689,87.66,3.99627592]
[1772488982442,39.91378622,87.689,87.66,3.99627592]
[1772488982637,39.91378622,87.689,87.641,11.41018473]
[1772488982638,0.6920514,87.688,87.641,11.41018473]
[1772488982838,0.6920514,87.688,87.65,3.99627592]
[1772488983243,0.6920514,87.688,87.66,3.99627592]
[1772488983849,0.6920514,87.686,87.66,3.99627592]
[1772488985573,11.40445914,87.685,87.66,3.99627592]
[1772488985965,12.09651054,87.685,87.66,3.99627592]
[1772488987050,0.6920514,87.709,87.68,3.99627592]
[1772488987267,0.6920514,87.708,87.68,3.99627592]
[1772488987778,0.1,87.72,87.661,1.42508128]
[1772488988087,0.6920514,87.719,87.7,3.99627592]
[1772488988259,0.6920514,87.709,87.67,3.99627592]
[1772488988854,0.6920514,87.697,87.65,0.28432314]
[1772488989071,0.6920514,87.697,87.66,3.99627592]
[1772488989277,0.6920514,87.697,87.652,0.28432314]
[1772488989857,0.6920514,87.695,87.654,0.28432314]
[1772488990057,0.6920514,87.689,87.641,0.28432314]
[1772488990372,0.6920514,87.689,87.643,30.28432314]
[1772488990580,0.6920514,87.689,87.645,0.28432314]
[1772488991979,0.6920514,87.687,87.646,11.4095338]
[1772488994378,0.6920514,87.679,87.645,0.28432314]
[1772488996385,0.6920514,87.677,87.646,11.4095338]
[1772488996881,0.6920514,87.677,87.641,1.14101847]
[1772488996882,0.6920514,87.677,87.642,0.28432314]
[1772488998185,0.6920514,87.675,87.644,0.28432314]
[1772488998976,0.6920514,87.709,87.66,3.99627592]
[1772488999281,0.6920514,87.708,87.66,3.99627592]
[1772489000174,0.6920514,87.706,87.67,3.99627592]
[1772489000968,0.6920514,87.706,87.661,41.35161644]
[1772489002280,0.6920514,87.704,87.661,12.83266275]
[1772489003283,39.90741479,87.703,87.661,12.83266275]
[1772489003476,0.6920514,87.702,87.661,12.83266275]
[1772489004488,0.6920514,87.702,87.64,3.99631201]
[1772489004489,0.6920514,87.689,87.653,12.54947012]
[1772489004983,0.6920514,87.689,87.653,11.40860786]
[1772489006589,0.6920514,87.687,87.644,11.6941173]
[1772489006770,0.6920514,87.687,87.646,0.28432314]
[1772489006976,0.6920514,87.687,87.647,1.14094036]
[1772489009286,0.6920514,87.685,87.648,11.40927345]
[1772489009491,0.6920514,87.685,87.649,1.14091432]
[1772489010893,11.40432908,87.686,87.649,1.14091432]
[1772489010894,0.6920514,87.679,87.649,1.14091432]
[1772489011091,39.91515178,87.686,87.644,11.40979416]
[1772489011092,0.6920514,87.669,87.644,11.40979416]
[1772489011278,0.6920514,87.668,87.644,11.40979416]
[1772489012405,11.40680073,87.667,87.64,3.69383402]
[1772489016697,0.6920514,87.674,87.641,39.93564655]
[1772489017689,0.6920514,87.672,87.641,39.93564655]
[1772489021111,0.6920514,87.67,87.641,39.93564655]
[1772489022303,0.6920514,87.67,87.641,11.41018473]
[1772489024306,0.6920514,87.649,87.605,19.83100108]
[1772489024610,0.6920514,87.629,87.605,8.41613229]
[1772489025409,0.6920514,87.629,87.606,11.41474328]
[1772489025990,0.6920514,87.629,87.606,39.95160148]
[1772489026989,0.6920514,87.638,87.606,41.0930758]
[1772489028499,0.6920514,87.647,87.606,41.0930758]
[1772489029909,0.6920514,87.629,87.605,8.41613229]
[1772489030094,0.6920514,87.629,87.606,11.41474328]
[1772489033312,0.6920514,87.627,87.606,11.41474328]
[1772489033614,0.6920514,87.627,87.605,8.41613229]
[1772489033797,0.6920514,87.636,87.606,40.23592462]
[1772489034802,0.6920514,87.642,87.608,0.28432314]
[1772489035920,15.40542883,87.65,87.609,39.95023341]
[1772489035921,0.6920514,87.64,87.609,39.95023341]
[1772489037012,0.6920514,87.639,87.609,11.4143524]
[1772489038515,0.6920514,87.637,87.609,11.4143524]
[1772489040407,0.6920514,87.629,87.609,11.4143524]
[1772489041903,28.51635127,87.669,87.61,0.28432314]
[1772489042102,3.99631201,87.65,87.617,0.5617831]
[1772489043013,3.99631201,87.63,87.605,8.41613229]
[1772489043215,3.99631201,87.63,87.606,11.41474328]
[1772489043406,15.40794261,87.63,87.607,0.56057233]
[1772489043609,15.40794261,87.63,87.606,11.41474328]
[1772489043917,0.60701455,87.629,87.606,11.41474328]
[1772489045309,0.60701455,87.629,87.605,8.41613229]
[1772489045517,43.93698517,87.63,87.605,8.41613229]
[1772489045518,0.60701455,87.627,87.605,8.41613229]
[1772489045907,0.60701455,87.627,87.606,11.41474328]
[1772489046327,0.60701455,87.627,87.605,8.41613229]
[1772489047023,0.60701455,87.627,87.605,19.83096154]
[1772489048526,0.60701455,87.627,87.606,0.56535534]
[1772489049335,11.41166339,87.63,87.606,0.56535534]
[1772489049713,0.60701455,87.629,87.608,0.57001807]
[1772489051610,0.60701455,87.629,87.609,11.4143524]
[1772489052150,0.60701455,87.627,87.605,8.41613229]
[1772489052319,0.60701455,87.627,87.606,11.41474328]
[1772489052637,0.60701455,87.627,87.607,0.58368737]
[1772489053217,0.60701455,87.627,87.606,11.41474328]
[1772489054337,0.60701455,87.627,87.606,12.00288282]
[1772489054639,12.01835831,87.633,87.607,0.59254057]
[1772489054833,11.41134376,87.633,87.607,0.59254057]
[1772489055016,0.60701455,87.632,87.607,0.59254057]
[1772489056922,0.60701455,87.632,87.609,0.59124967]
[1772489057728,0.64401751,87.641,87.609,0.59124967]
[1772489058136,0.64401751,87.639,87.609,0.59124967]
[1772489059339,0.64401751,87.639,87.611,0.59557117]
[1772489060041,0.64401751,87.645,87.617,0.59557117]
[1772489061232,0.64401751,87.645,87.619,0.59557117]
[1772489061431,0.64401751,87.629,87.606,11.41474328]
[1772489061626,0.64401751,87.629,87.605,8.41613229]
[1772489063253,0.64401751,87.627,87.605,8.41613229]
[1772489064534,11.41213794,87.626,87.606,0.59557117]
[1772489064738,12.05615545,87.626,87.606,0.59557117]
[1772489065050,0.64401751,87.625,87.605,8.41613229]
[1772489065639,4.00372127,87.64,87.606,11.41474328]
[1772489065944,85.66128354,87.806,87.631,0.28432314]
[1772489065945,4.00372127,87.69,87.631,0.28432314]
[1772489066149,4.00372127,87.69,87.64,4.00372127]
[1772489066346,4.00372127,87.69,87.641,0.28432314]
[1772489066547,11.40393892,87.689,87.643,0.28432314]
[1772489067737,0.66870518,87.688,87.643,0.28432314]
[1772489068352,0.66870518,87.669,87.642,11.41005454]
[1772489068535,0.66870518,87.658,87.612,11.41396155]
[1772489068731,0.66870518,87.658,87.62,4.00372127]
[1772489069351,0.66870518,87.658,87.612,11.41396155]
[1772489069550,0.66870518,87.668,87.612,11.41396155]
[1772489069751,0.66870518,87.668,87.62,4.00372127]
[1772489069950,0.66870518,87.668,87.63,4.00372127]
[1772489070838,0.66870518,87.666,87.63,4.00372127]
[1772489071149,0.66870518,87.666,87.613,0.28432314]
[1772489071150,0.66870518,87.666,87.62,15.41662914]
[1772489071348,0.66870518,87.666,87.63,4.00372127]
[1772489072152,0.66870518,87.664,87.63,4.00372127]
[1772489072452,0.66870518,87.664,87.626,11.41207802]
[1772489072652,0.66870518,87.664,87.63,4.00372127]
[1772489073446,0.66870518,87.664,87.631,0.02397519]
[1772489073646,0.66870518,87.67,87.641,0.02397519]
[1772489073951,0.66870518,87.67,87.634,0.02397519]
[1772489074155,0.66870518,87.668,87.641,11.41018473]
[1772489077663,0.66870518,87.659,87.62,4.00372127]
[1772489077953,0.66870518,87.659,87.63,4.00372127]
[1772489079135,11.40797189,87.658,87.63,4.00372127]
[1772489079335,0.66870518,87.657,87.63,4.00372127]
[1772489079734,12.07590156,87.664,87.631,0.03476411]
[1772489079938,0.66870518,87.664,87.64,4.00372127]
[1772489081348,0.66870518,87.664,87.641,11.41018473]
[1772489082039,0.66870518,87.664,87.641,11.44838212]
[1772489082241,11.40706637,87.665,87.642,0.03819739]
[1772489082442,0.66870518,87.664,87.641,11.41018473]
[1772489083864,0.66870518,87.659,87.612,0.04155227]
[1772489085163,0.66870518,87.657,87.601,0.04320086]
[1772489085466,39.92790161,87.658,87.55,0.2]
[1772489085467,0.66870518,87.649,87.62,4.00372127]
[1772489085848,0.66870518,87.649,87.601,1.14153948]
[1772489086048,0.66870518,87.649,87.537,19.09496093]
[1772489086049,0.64401751,87.609,87.571,0.24483051]
[1772489086365,0.64401751,87.609,87.57,4.20372127]
[1772489087243,4.00372127,87.61,87.57,4.20372127]
[1772489087244,0.64401751,87.607,87.57,4.20372127]
[1772489088258,0.64401751,87.607,87.57,15.62302995]
[1772489088459,0.64045592,87.615,87.59,4.00372127]
[1772489088666,0.64045592,87.615,87.573,0.25116409]
[1772489088962,0.64045592,87.609,87.57,11.61930868]
[1772489089142,0.64045592,87.609,87.57,15.62302995]
[1772489089743,0.64045592,87.607,87.57,15.62302995]
[1772489092355,11.41474328,87.606,87.57,15.62302995]
[1772489092543,0.64045592,87.605,87.57,15.62302995]
[1772489093146,0.64045592,87.605,87.58,4.00372127]
[1772489094260,11.41474328,87.606,87.581,0.26513618]
[1772489094563,11.41474328,87.606,87.582,11.68300743]
[1772489095146,12.0551992,87.606,87.582,11.68300743]
[1772489099055,0.64045592,87.605,87.582,11.68300743]
[1772489099256,0.64045592,87.605,87.582,11.41787125]
[1772489100268,1.14153948,87.632,87.601,0.28586035]
[1772489100589,0.64045592,87.649,87.62,4.00372127]
[1772489100753,0.64045592,87.647,87.62,4.00372127]
[1772489100956,0.64045592,87.653,87.62,4.00372127]
[1772489101258,0.64045592,87.653,87.62,4.29289813]
[1772489101468,0.64045592,87.663,87.631,0.28917686]
[1772489101659,0.64045592,87.663,87.63,4.00372127]
[1772489101968,0.64045592,87.674,87.65,4.00372127]